Cogmind - Beta 14 @@@ ROGUE MODE // 2024.08.17 @ 13:27:44 Player: Afromullet Result: Destroyed by SF-815(R) with Subdweller Beam Cannon Performance ------------- Evolutions (0) 0 Regions Visited (3) 600 Robots Destroyed (7) 35 Value Destroyed (216) 216 Prototype IDs (0) 0 Alien Tech Used (0) 0 Bonus (0) 0 TOTAL SCORE: 851 Bonus ------- None Cogmind --------- Core Integrity 0/250 Matter 300/300 Energy 125/125 System Corruption 0% Temperature Cool (9) Movement Walking (190) Ox1 Location -10/Subcaves Parts ------- > --- POWER (1) -------- Light Ion Engine > --- PROPULSION (2) --- Aluminum Leg > --- UTILITY (2) ------ Improved Heat Sink Medium Storage Unit > --- WEAPON (2) ------- Beam Cannon Light Assault Rifle > --- INVENTORY (10) --- Ion Engine Light Nuclear Core Aluminum Leg Aluminum Leg Aluminum Leg Improved Terrain Scanner Medium Laser Small Laser Light Assault Rifle Light Assault Rifle Peak State ------------ > --- POWER ------------ Light Ion Engine > --- PROPULSION ------- Aluminum Leg Aluminum Leg > --- UTILITY ---------- Improved Heat Sink Medium Storage Unit > --- WEAPON ----------- Light Assault Rifle Light Assault Rifle > --- INVENTORY -------- Ion Engine Ion Engine Aluminum Leg Aluminum Leg Aluminum Leg Aluminum Leg Medium Storage Unit Medium Laser Beam Cannon Light Assault Rifle [Rating: 10] Favorites ----------- Power Light Ion Engine Engine Light Ion Engine Propulsion Aluminum Leg Leg Aluminum Leg Wheel Compact Wheel Utility Medium Storage Unit Device Improved Heat Sink Storage Medium Storage Unit Weapon Light Assault Rifle Energy Gun Medium Laser Energy Cannon Beam Cannon Ballistic Gun Light Assault Rifle Build | -11 -10 -10 -10 ------- Run | Yrd Mat Min Sub Slots Evolved . | . . . . Power . | . . . . Propulsion . | . . . . Utility . | . . . . Weapon . | . . . . Parts Attached 17 | 7 5 5 . Power 1 | 1 . . . Engine 1 | 1 . . . Core . | . . . . Reactor . | . . . . Propulsion 4 | 2 . 2 . Treads . | . . . . Leg 2 | . . 2 . Wheel 2 | 2 . . . Hover . | . . . . Flight . | . . . . Utility 5 | 1 3 1 . Device 3 | . 2 1 . Storage 2 | 1 1 . . Processor . | . . . . Hackware . | . . . . Protection . | . . . . Artifact . | . . . . Weapon 7 | 3 2 2 . Energy Gun 3 | 2 1 . . Energy Cannon 1 | . . 1 . Ballistic Gun 3 | 1 1 1 . Ballistic Cannon . | . . . . Launcher . | . . . . Special Weapon . | . . . . Impact Weapon . | . . . . Slashing Weapon . | . . . . Piercing Weapon . | . . . . Special Melee Weapon . | . . . . Unidentified Prototypes . | . . . . Parts Lost 4 | . 1 2 1 Power . | . . . . Propulsion 2 | . 1 . 1 Utility 1 | . . 1 . Weapon 1 | . . 1 . Highest Loss Streak 3 | . 1 3 1 To Critical Strikes . | . . . . Average Slot Usage (%) 96 | . 92 98 100 Engine 14 | . 14 14 14 Leg 16 | . . 26 28 Wheel 11 | . 27 . . Device 11 | . 7 13 14 Storage 14 | . 14 14 14 Energy Gun 5 | . 14 . . Energy Cannon 7 | . . 11 14 Ballistic Gun 15 | . 14 15 14 Peak Build Rating 10 | 6 7 10 10 Average Rating 8 | 4 6 9 9 On Entrance 5 | . 6 6 10 Naked Turns . | . . . . Heaviest Build 21 | 11 21 18 18 Greatest Support 32 | 32 32 20 20 Greatest Overweight (x) 3 | 3 1 1 1 Average Overweight (x) . | . . . . Largest Inventory Capacity 10 | 8 10 10 10 Average Capacity 9 | 7 9 10 10 Most Carried 10 | 4 9 10 10 Average Carried 7 | 1 5 9 10 Final Capacity 10 | 8 10 10 10 Final Carried 10 | 4 9 10 10 Class Distribution -------------------- 93% | Mutant 6% | Scavenger-Mutant Dominant Class ---------------- Mutant | -10/Materials Mutant | -10/Mines Mutant | -10/Subcaves Resources | -11 -10 -10 -10 ----------- Run | Yrd Mat Min Sub Matter Collected 378 | 185 119 74 . Remotely . | . . . . Salvage Created 243 | . 158 85 . Parts 14 | . 7 7 . Haulers Intercepted . | . . . . Recyclers Shooed 1 | . 1 . . Parts Field Recycled . | . . . . Retrieved Matter . | . . . . Parts Self-Destructed . | . . . . Prevented . | . . . . Kills | -11 -10 -10 -10 ------- Run | Yrd Mat Min Sub Combat Hostiles Destroyed 7 | . 5 2 . Guns 7 | . 5 2 . Classes Destroyed 2 | . 2 . . Swarmer 2 | . 2 . . Grunt 5 | . 3 2 . Best Kill Streak 2 | . 2 2 . Combat Bots Only 2 | . 2 2 . Max Kills in Single Turn 1 | . 1 1 . Gunslinging . | . . . . Exploded . | . . . . Melee . | . . . . Uniques/NPCs Destroyed . | . . . . Combat | -11 -10 -10 -10 -------- Run | Yrd Mat Min Sub Hostile Shots Fired 61 | . 29 17 15 Missed 17 | . 10 2 5 Damage Taken 705 | . 234 183 288 Core 274 | . 111 42 121 Absorbed by Shields . | . . . . Core Remaining (%) 100 | 100 . . . Volleys Fired 31 | . 22 9 . Largest 2 | . 2 2 . Hottest 70 | . 70 70 . Shots Fired 62 | . 44 18 . Gun 62 | . 44 18 . Cannon . | . . . . Launcher . | . . . . Special . | . . . . Kinetic 32 | . 22 10 . Thermal 26 | . 18 8 . Explosive . | . . . . Electromagnetic 4 | . 4 . . Robot Hit Streak 8 | . 8 4 . Robot Miss Streak 4 | . 4 2 . Penetration Max . | . . . . Secondary Targets 1 | . . 1 . Max Gunslinging Chain 1 | . . 1 . Shots Hit Robots 41 | . 29 12 . Core Hits 16 | . 10 6 . Critical Kills . | . . . . Critical Parts Destroyed . | . . . . Critical Strikes . | . . . . Melee Attacks . | . . . . Impact . | . . . . Slashing . | . . . . Piercing . | . . . . Sneak Attacks . | . . . . Combat Hostiles . | . . . . Follow-up Attacks . | . . . . Damage Inflicted 444 | . 325 119 . Guns 417 | . 298 119 . Cannons . | . . . . Explosions . | . . . . Melee . | . . . . Ramming 27 | . 27 . . Kinetic 187 | . 131 56 . Thermal 188 | . 125 63 . Explosive . | . . . . Electromagnetic 42 | . 42 . . Impact . | . . . . Slashing . | . . . . Piercing . | . . . . Highest Corruption . | . . . . Average Corruption . | . . . . Corruption Purged . | . . . . Corruption Blocked . | . . . . Overload Shots . | . . . . Overflow Damage . | . . . . Projectiles . | . . . . Explosions . | . . . . Melee . | . . . . Knockbacks . | . . . . Impact . | . . . . Kinetic . | . . . . Secondary . | . . . . Self-Inflicted Damage 12 | . 12 . . Shots . | . . . . Rammed 3 | . 3 . . Targets Rammed 4 | . 3 1 . Kicked 1 | . . 1 . Crushed . | . . . . Highest Temperature 216 | . 145 216 . Average Temperature 70 | . 47 118 . Received Heat Transfer 267 | . 102 102 63 Siege Activations . | . . . . Robots Corrupted . | . . . . Combat Hostiles . | . . . . Parts Fried . | . . . . Impact Corruptions . | . . . . Robots Melted . | . . . . Combat Hostiles . | . . . . Parts Melted . | . . . . Heat Transferred 555 | . 370 185 . Parts Sabotaged . | . . . . Parts Stolen . | . . . . Parts Stripped . | . . . . Power Chain Reactions . | . . . . Alert | -11 -10 -10 -10 ------- Run | Yrd Mat Min Sub Peak Influence 180 | . 180 96 . Initial 66 | . . 66 . Average 66 | . 54 85 . Maximum Alert Level . | . . . . Low Security (%) 100 | 100 100 100 . Level 1 . | . . . . Level 2 . | . . . . Level 3 . | . . . . Level 4 . | . . . . Level 5 . | . . . . High Security . | . . . . Max Security . | . . . . Squads Dispatched 2 | . 2 . . Investigation 1 | . 1 . . Extermination . | . . . . Reinforcement 1 | . 1 . . Assault . | . . . . Garrison . | . . . . Intercept . | . . . . Searches Triggered . | . . . . Construction Impeded . | . . . . Haulers Reinforced . | . . . . Active Scanning Responses . | . . . . Cargo Convoy Interrupts . | . . . . Stealth | -11 -10 -10 -10 --------- Run | Yrd Mat Min Sub Distress Signals 2 | . 1 1 . Communications Jammed . | . . . . Distress Signals . | . . . . Times Spotted 27 | . 13 2 12 Peak Tracking Total 10 | . 4 2 10 Tactical Retreats 1 | . 1 . . Traps | -11 -10 -10 -10 ------- Run | Yrd Mat Min Sub Traps Triggered 1 | . 1 . . Indirectly . | . . . . Trap Hack Attempts . | . . . . Triggered . | . . . . Disarmed . | . . . . Reprogrammed . | . . . . Reused . | . . . . Traps Extracted . | . . . . Installed . | . . . . Triggered . | . . . . Machines | -11 -10 -10 -10 ---------- Run | Yrd Mat Min Sub Machines Disabled . | . . . . Max in Single Turn . | . . . . Machines Repaired . | . . . . Machines Dismantled . | . . . . Machines Sabotaged . | . . . . Overloaded Fab Kills . | . . . . Hacking | -11 -10 -10 -10 --------- Run | Yrd Mat Min Sub Machines Accessed . | . . . . Terminals . | . . . . Fabricators . | . . . . Repair Stations . | . . . . Recycling Units . | . . . . Scanalyzers . | . . . . Garrison Access . | . . . . Total Hacks . | . . . . Successful . | . . . . Failed . | . . . . Catastrophic . | . . . . Database Lockouts . | . . . . Manual . | . . . . Terminals . | . . . . Fabricators . | . . . . Repair Stations . | . . . . Recycling Units . | . . . . Scanalyzers . | . . . . Garrison Access . | . . . . Terminal Hacks . | . . . . Fabricator Hacks . | . . . . Repair Station Hacks . | . . . . Recycling Unit Hacks . | . . . . Scanalyzer . | . . . . Garrison Access Hacks . | . . . . Unauthorized Hacks . | . . . . Terminals . | . . . . Fabricators . | . . . . Repair Stations . | . . . . Recycling Units . | . . . . Scanalyzers . | . . . . Garrison Access . | . . . . Data Cores Recovered . | . . . . Used . | . . . . Hacking Detections . | . . . . Full Trace Events . | . . . . Feedback Events . | . . . . Feedback Blocked . | . . . . Robot Schematics Acquired . | . . . . Robots Built . | . . . . Authchips . | . . . . Time . | . . . . Total Robot Build Rating . | . . . . Part Schematics Acquired . | . . . . Parts Built . | . . . . Authchips . | . . . . Time . | . . . . Total Part Build Rating . | . . . . Parts Repaired . | . . . . Time . | . . . . Parts Recycled . | . . . . Recycled Matter . | . . . . Retrieved Matter . | . . . . Retrieved Components . | . . . . Parts Scanalyzed . | . . . . Part Schematics Acquired . | . . . . Parts Damaged . | . . . . Bothacking | -11 -10 -10 -10 ------------ Run | Yrd Mat Min Sub Used RIF Installer . | . . . . Robots Hacked . | . . . . Non-combat . | . . . . Combat . | . . . . Robot Hacks Applied . | . . . . Relay Couplers Released . | . . . . Fabnet Peak Effective % . | . . . . Robots Rewired . | . . . . Allies Hacked . | . . . . Hacks Repelled . | . . . . Allies | -11 -10 -10 -10 -------- Run | Yrd Mat Min Sub Total Allies 2 | . . 2 . Largest Group 2 | . . 2 2 Highest-Rated Group 45 | . . 45 45 Highest-Rated Ally 31 | . . 31 31 Total Orders . | . . . . Ally Attacks 8 | . . 7 1 Total Damage 126 | . . 105 21 Kills 3 | . . 3 . Allies Corrupted . | . . . . Allies Melted . | . . . . Intel | -11 -10 -10 -10 ------- Run | Yrd Mat Min Sub Robot Analysis Total . | . . . . Derelict Logs Recovered 1 | . . . 1 Drone Launches . | . . . . Drone Recoveries . | . . . . Exploration | -11 -10 -10 -10 ------------- Run | Yrd Mat Min Sub Turns Passed 906 | 67 316 445 78 Spaces Moved 668 | 46 222 336 64 Core 16 | 16 . . . Treads . | . . . . Legs 399 | . . 335 64 Wheels 253 | 30 222 1 . Hover . | . . . . Flight . | . . . . Fastest Speed 50 | 50 100 100 120 Average Speed 113 | 110 100 120 123 Slowest Speed 200 | 200 115 190 190 Overloaded Moves . | . . . . Propulsion Burnouts . | . . . . Robots Hopped . | . . . . Cave-ins Triggered . | . . . . Exploration Rate (%) 25 | 5 36 55 6 Regions Visited 3 Branch Regions 2 Pre-discovered Areas . | . . . . Known Exits Taken . | . . . . Unknown Exits Taken 3 | 1 1 1 . Scrap Searched . | . . . . Spaces Dug . | . . . . Terrain Destroyed . | . . . . Melee . | . . . . Projectile . | . . . . AOE . | . . . . Terrain Rammed . | . . . . Walls Destroyed . | . . . . Machines Disabled . | . . . . Actions | -11 -10 -10 -10 --------- Run | Yrd Mat Min Sub Total 757 | 58 274 361 64 Wait 19 | 2 15 2 . Move 665 | 45 221 335 64 Hop . | . . . . Pick Up 14 | 4 5 5 . Fast Attach 12 | 6 3 3 . Attach 2 | . 1 1 . Detach . | . . . . Swap 3 | 1 1 1 . Drop 7 | . 3 4 . Fire 31 | . 22 9 . Melee . | . . . . Ram 3 | . 3 . . Kick 1 | . . 1 . Crush . | . . . . Escape Stasis . | . . . . Rewire . | . . . . Trap . | . . . . Miscellaneous . | . . . . Route ------- -11/Scrapyard -10/Materials -10/Mines -10/Subcaves History --------- Turn | Location | Event 44 | -11/Scrapyard | Discovered new exit (range 15) 68 | -11/Scrapyard | Entered Materials 309 | -10/Materials | Build established: Mutant 376 | -10/Materials | Discovered new exit (range 8) 384 | -10/Materials | Entered Mines 391 | -10/Mines | Core integrity fell below 50% 431 | -10/Mines | Assembled infested the area 436 | -10/Mines | Assisted by a Guerilla fighting off Assembled 437 | -10/Mines | Lost 3 parts (1n1u1w) 827 | -10/Mines | Discovered new exit (range 3) 829 | -10/Mines | Entered Subcaves 829 | -10/Subcaves | Accompanied by 2 allies 834 | -10/Subcaves | Led the pair of lost Derelicts to an unsafe place 871 | -10/Subcaves | Learned Materials garrison access intel 898 | -10/Subcaves | Ambushed by swarm of Subdwellers 900 | -10/Subcaves | Ambushed by Subdwellers from Twisted Machinery 900 | -10/Subcaves | Ambushed by Subdwellers from Twisted Machinery 900 | -10/Subcaves | Ambushed by Subdwellers from Twisted Machinery 900 | -10/Subcaves | Ambushed by Subdwellers from Twisted Machinery 900 | -10/Subcaves | Ambushed by Subdwellers from Twisted Machinery 904 | -10/Subcaves | Core integrity fell below 20% 907 | -10/Subcaves | Destroyed by SF-815(R) with Subdweller Beam Cannon Last Messages --------------- Data stored: Materials garrison access intel. A mess of Twisted Machinery falls from the cavern ceiling. W9-CT5(R) comes tumbling into view. NA-JVB(h): "The Subs are coming!" W9-CT5(R) suffers critical hit (Destroy). W9-CT5(R) destroyed. IF-EZY(R) emerges from the Twisted Machinery. IF-EZY(R) destroyed. SQ-TVQ(R) angrily emerges from the Twisted Machinery. 6I-7J1(R) angrily emerges from the Twisted Machinery. TU-BQS(R) angrily emerges from the Twisted Machinery. 9F-BCF(R) angrily emerges from the Twisted Machinery. 9M-QQM(R) angrily emerges from the Twisted Machinery. 0H-9O2(z) destroyed. EE-0CL(R) suffers critical hit (Burn). Aluminum Leg destroyed. WM-YQE(g) destroyed. LL-HGX(R) suffers critical hit (Destroy). LL-HGX(R) destroyed. 6I-7J1(R) knocked back. Map ----- +----------------------------------------------------+ | ???????????????? ????????# #???????????? | | ????????????????? ???????# #???????????? | | ?????????????????? ###???# ##???????????? | | ??????????????????? ##### ### #????????????? | | ???????????????????? ## ### ##????????????? | | ????????????????????? ### #?????????????? | | ??????????????????????# #?## #?????????????? | | ??????????????????????# #??### #?????????????? | | ??????????????????##### ###### ##?????????????? | | ??????????????????# ##?????????????? | | ?????????????????## #?????????????? | | ?????????????????# ## ## #????????????? | | ?????????????????# ## ### #????????????? | | ????????????????# ## ##?? #???????????? | | ???????????????# ??## #??? #???????????? | | ??????????????## ????## ### #?? ##???????????? | | ??????????????# ????## ##??##?? #????????????? | | ?????????????### ??## ##?????? ????????????? | | ????????????##<#< ### #?????? ##???????????? | | ????????????# # R #????## ????????????? | | ???????????????#< h## #??? ##????????????? | | ???????????????# /&= ;###?? #????????????? | | ???????????????# &%= #### #????????????? | | ???????????????##;;RRR= ????????????? | | ????????????????# R ## ????????????? | | ????????????????# ;=R @ ##??????????????????? | | ????????????????# ;%R ;;### #???????????????????? | | ????????????????##%RR "##??# ?????????????????? | | ?????????????????#; #???? ??????????????? | | ????????????????# "#????? #?????????????? | | ??????????????? ##?????? #?????????????? | | ????????????? ???????? ???????????????? | | ???????????? ????????###???????????????? | | ???????????# ?????????????????????????? | | ?????????? #### ?????????????????????????? | | ?????????? # #####????#?????????????????????????? | | ??????????? ???????????????????????????????????? | | ???????????# ????????????????????????????????????? | | ???????????#?????????????????????????????????????? | | ?????????????????????????????????????????????????? | | ?????????????????????????????????????????????????? | | ?????????????????????????????????????????????????? | | ?????????????????????????????????????????????????? | | ?????????????????????????????????????????????????? | | ?????????????????????????????????????????????????? | | ?????????????????????????????????????????????????? | | ?????????????????????????????????????????????????? | | ?????????????????????????????????????????????????? | | ?????????????????????????????????????????????????? | | ?????????????????????????????????????????????????? | +----------------------------------------------------+ Best States ------------- Heat Dissipation 39 Energy Generation 10 Energy Capacity 125 Matter Stores 300 Matter Capacity 300 Sight Range 16 Robot Scan Range 14 Terrain Scan Density 10 Evasion (%) 55 Item Schematics ----------------- None Robot Schematics ------------------ None Fabricated ------------ Nothing Alien Tech Used ----------------- None Achievements -------------- None Challenges ------------ None Game ------ Seed LegMetaCarapace Manual? 0 Play Time 00:11:54 Cumulative 33.0 hours Start 2024.08.14 @ 15:24:30 End 2024.08.17 @ 13:27:44 Sessions 2 Manual Loads 0 Difficulty Rogue Special Mode None Game No. 102 Rogue 95 Adventurer 7 Explorer 0 Win Type - Total 0 Types 0/0/0/0/0/0/0/0/0 Lore% 1 Gallery% 22 Achievement% 12 Wizard Run 0 Options --------- Layout 1 ASCII 0 Keyboard 0 Movement Numpad Keybinds 0 Fullscreen 0 Font 20/SmallcapsGlow Map View 64x42 Zoom Use 0% Tactical HUD 0 Map Filters NONE Filters NONE Steam 1 RUN: c134aeda-21d9-47a0-a967-8c3bf1604624